fUSD/lending_fUSD_20250611
["ID","MTS","AMOUNT","RATE_DAILY","PERIOD"]
[365459139,1749681069290,-10116.99999999,0.0002,2]
[365459140,1749681069317,-490.0,0.00019342,2]
[365459141,1749681069326,-23.29583527,0.00019342,2]
[365459142,1749681069349,-466.70416473,0.00019342,2]
[365459143,1749681069359,-691395.89358963,0.0002,2]
[365459144,1749681069663,-490.0,0.00019178,2]
[365459145,1749681069672,-490.0,0.00019178,2]
[365459146,1749681069682,-188.5,0.00019342,2]
[365459147,1749681069691,-490.0,0.00019342,2]
[365459148,1749681069701,-490.0,0.00019506,2]
[365459149,1749681069711,-490.0,0.00019506,2]
[365459150,1749681069720,-480.0,0.00019506,2]
[365459151,1749681069730,-490.0,0.00019671,2]
[365459152,1749681069739,-490.0,0.00019671,2]
[365459153,1749681069748,-490.0,0.00019835,2]
[365459154,1749681069757,-111.64788668,0.00019835,2]
[365459155,1749681069769,-378.35211332,0.00019835,2]
[365459156,1749681069778,-40.98788718,0.0002,2]
[365459157,1749681069793,-160333.432119,0.0002,2]
[365459158,1749681069803,-259.69944,0.0002,2]
[365459159,1749681069814,-89049.4647304,0.0002,2]
[365459160,1749681069825,-843.0998246,0.0002,2]
[365459161,1749681070166,-480.0,0.00019178,2]
[365459162,1749681070176,-490.0,0.00019178,2]
[365459163,1749681070185,-490.0,0.00019178,2]
[365459164,1749681070195,-490.0,0.00019178,2]
[365459165,1749681070204,-1441.34,0.00019178,2]
[365459166,1749681070214,-490.0,0.00019178,2]
[365459167,1749681070223,-490.0,0.00019342,2]
[365459168,1749681070233,-166.6,0.00019342,2]
[365459169,1749681070242,-490.0,0.00019342,2]
[365459170,1749681070252,-490.0,0.00019506,2]
[365459171,1749681070261,-490.0,0.00019671,2]
[365459172,1749681070270,-905.07050405,0.00019707,2]
[365459173,1749681070280,-490.0,0.00019835,2]
[365459174,1749681070290,-8086.98949645,0.0002,2]
[365459175,1749681070301,-2342.78324257,0.0002,2]
[365459176,1749681070312,-1180966.72700763,0.0002,2]
[365459177,1749681070323,-356.697,0.0002,2]
[365459178,1749681070334,-514.537486,0.0002,2]
[365459179,1749681070350,-1441.34,0.00019342,2]
[365459180,1749681070359,-12821.14240748,0.0002,2]
[365459181,1749681070379,-490.0,0.00019342,2]
[365459182,1749681070388,-505232.52713342,0.0002,2]
[365459183,1749681070401,-302.0,0.0002,2]
[365459184,1749681070413,-268.9,0.0002,2]
[365459185,1749681070534,-689.24435917,0.00019178,2]
[365459186,1749681070545,-310.75564083,0.00019178,2]
[365459187,1749681070556,-490.0,0.00019506,2]
[365459188,1749681070565,-1441.34,0.00019506,2]
[365459189,1749681070575,-490.0,0.00019506,2]
[365459190,1749681070584,-853.0,0.00019518,2]
[365459191,1749681070593,-490.0,0.00019671,2]
[365459192,1749681070603,-1327.90435917,0.0002,2]
[365459193,1749681070759,-1000.0,0.00019342,2]
[365459194,1749681070770,-1441.34,0.00019671,2]
[365459195,1749681070779,-167.87,0.00019671,2]
[365459196,1749681070788,-1000.89576781,0.0002,2]
[365459197,1749681070808,-490.0,0.00019178,2]
[365459198,1749681070817,-490.0,0.00019835,2]
[365459199,1749681070826,-12203.5000001,0.0002,2]
[365459200,1749681074402,204.0,0.00017247,2]
[365459201,1749681074771,235.58725745,0.00017999,2]
[365459203,1749681199130,500.0,0.00016384,2]
[365459204,1749681199225,500.0,0.00016384,2]
[365459206,1749681281896,160.65570302,0.0002,30]
[365459210,1749681414820,1227.62,0.00016088,2]
[365459211,1749681560862,3853.82,0.00017938,2]
[365459216,1749681667014,250.0,0.00017828,2]
[365459217,1749681718449,666.0,0.00017822,2]
[365459218,1749681720940,167.66,0.00017822,2]
[365459219,1749681900877,896.72182881,0.00017905,2]
[365459220,1749682047105,-609.22288307,0.00018002,2]
[365459221,1749682047127,-250.0,0.00018003,2]
[365459222,1749682047147,-500.75336114,0.00018005,2]
[365459223,1749682054122,-1518.57984708,0.00018005,2]
[365459224,1749682068741,318.52,0.00013699,2]
[365459226,1749682147985,500.0,0.00017829,2]
[365459230,1749682200039,1000.0,0.00017849,2]
[365459231,1749682212295,204.0,0.00017133,2]
[365459241,1749682231424,-436.45,0.00018005,2]
[365459242,1749682231455,-2702.91010009,0.00018005,2]
[365459243,1749682231651,-103.52669169,0.00018005,2]
[365459244,1749682231660,-250.0,0.00018005,2]
[365459245,1749682231670,-175.80270312,0.00018005,2]
[365459246,1749682231679,-175.80270312,0.00018005,2]
[365459248,1749682231689,-1200.0,0.00018017,2]
[365459250,1749682231698,-175.80270312,0.00018018,2]
[365459252,1749682231707,-563.46519896,0.00018018,2]
[365459254,1749682231719,-884.09480104,0.00018018,2]
[365459255,1749682231729,-300.0,0.00018018,2]
[365459256,1749682231739,-300.0,0.00018018,2]
[365459257,1749682231748,-300.0,0.00018018,2]
[365459258,1749682231757,-300.0,0.00018018,2]
[365459259,1749682231766,-3103.18,0.0001802,2]
[365459260,1749682231775,-550.0,0.00018033,2]
[365459261,1749682231784,-341.4,0.00018034,2]
[365459263,1749682231795,-21673.32,0.00018034,2]
[365459265,1749682231808,-1632.47592366,0.00018078,2]
[365459267,1749682231818,-156.43,0.00018086,2]
[365459269,1749682231827,-150.0,0.00018093,7]
[365459271,1749682231836,-1227.62,0.00018352,2]
[365459273,1749682231847,-300.0,0.00018419,2]
[365459275,1749682231858,-166.44,0.00018508,2]
[365459277,1749682231867,-204.0,0.00018516,3]
[365459279,1749682231880,-245.03,0.00018576,2]
[365459281,1749682231890,-151.0,0.0001874,2]
[365459283,1749682231899,-151.0,0.0001875,2]
[365459285,1749682231908,-1957.856,0.0001875,2]
[365459287,1749682231918,-151.0,0.0001875,2]
[365459289,1749682231927,-151.52017565,0.0001875,2]
[365459291,1749682231936,-750.0,0.0001875,2]
[365459293,1749682231945,-750.0,0.0001875,2]
[365459294,1749682231954,-500.0,0.0001875,2]
[365459297,1749682231964,-750.0,0.0001875,2]
[365459299,1749682231973,-500.0,0.0001875,2]
[365459301,1749682231983,-500.0,0.0001875,2]
[365459302,1749682231992,-750.0,0.0001875,2]
[365459304,1749682232000,-500.0,0.0001875,2]
[365459306,1749682232010,-500.0,0.0001875,2]
[365459308,1749682232019,-500.0,0.0001875,2]
[365459310,1749682232028,-750.0,0.0001875,2]
[365459312,1749682232037,-188.24571073,0.0001875,2]
[365459314,1749682232047,-500.0,0.0001875,2]
[365459316,1749682232056,-500.0,0.0001875,2]
[365459318,1749682232066,-750.0,0.0001875,2]
[365459320,1749682232075,-500.0,0.0001875,2]
[365459322,1749682232085,-416.11886961,0.0001875,2]
[365459324,1749682232094,-266.44800324,0.0001875,2]
[365459326,1749682232104,-500.0,0.0001875,2]
[365459328,1749682232114,-500.0,0.0001875,2]
[365459330,1749682232125,-200.09507562,0.0001875,2]
[365459332,1749682232134,-207.4,0.0001875,2]
[365459334,1749682232144,-12622.95630101,0.00018751,2]
[365459336,1749682232156,-2030.296672,0.00018805,2]
[365459338,1749682232166,-300.0,0.00018853,2]
[365459340,1749682232175,-2105.41764886,0.0001886,2]
[365459342,1749682232184,-2618.09742338,0.00018878,2]
[365459344,1749682232193,-206.92711816,0.000189,2]
[365459346,1749682232203,-2183.31810187,0.00018915,2]
[365459348,1749682232213,-168.0,0.00018937,2]
[365459350,1749682232222,-2264.10087164,0.0001897,2]
[365459352,1749682232238,-206.92711805,0.00018977,2]
[365459354,1749682232247,-2083.4864,0.00018978,2]
[365459356,1749682232256,-227.50568271,0.00019014,2]
[365459358,1749682232265,-2347.87260389,0.00019025,2]
[365459360,1749682232276,-461.31,0.00019041,2]
[365459362,1749682232285,-461.31,0.00019041,2]
[365459364,1749682232294,-796.98,0.00019041,2]
[365459366,1749682232304,-461.31,0.00019041,2]
[365459368,1749682232313,-796.98,0.00019041,2]
[365459370,1749682232323,-796.98,0.00019041,2]
[365459372,1749682232332,-461.31,0.00019041,2]
[365459374,1749682232342,-461.31,0.00019041,2]
[365459376,1749682232353,-796.98,0.00019041,2]
[365459378,1749682232364,-461.31,0.00019041,2]
[365459380,1749682232375,-461.31,0.00019041,2]
[365459382,1749682232385,-796.98,0.00019041,2]
[365459384,1749682232395,-461.31,0.00019041,2]
[365459386,1749682232406,-796.98,0.00019041,2]
[365459388,1749682232416,-796.98,0.00019041,2]
[365459390,1749682232427,-461.31,0.00019041,2]
[365459392,1749682232437,-520.38,0.00019041,2]
[365459394,1749682232447,-2618.08,0.00019042,2]
[365459396,1749682232456,-206.92711805,0.00019054,2]
[365459398,1749682232465,-227.50568271,0.00019068,2]
[365459400,1749682232474,-228.98933312,0.00019078,2]
[365459402,1749682232485,-167.09663616,0.00019078,2]
[365459404,1749682232494,-166.36500593,0.00019078,2]
[365459406,1749682232503,-1000.0,0.00019078,2]
[365459408,1749682232512,-5000.0,0.00019078,2]
[365459410,1749682232522,-1000.0,0.00019078,2]
[365459412,1749682232532,-2434.74389024,0.0001908,2]
[365459414,1749682232541,-500.0,0.00019124,2]
[365459416,1749682232551,-500.0,0.00019124,2]
[365459418,1749682232561,-206.92711805,0.00019131,2]
[365459420,1749682232571,-2524.82941417,0.00019135,2]
[365459422,1749682232580,-227.50568271,0.00019151,2]
[365459424,1749682232590,-324.99,0.00019168,2]
[365459426,1749682232599,-324.99,0.00019168,2]
[365459428,1749682232611,-324.99,0.00019168,2]
[365459430,1749682232620,-768.96,0.00019168,2]
[365459432,1749682232631,-228.98933312,0.00019169,2]
[365459434,1749682232640,-501.1454611,0.00019173,2]
[365459436,1749682232649,-500.0,0.00019173,2]
[365459438,1749682232659,-500.0,0.00019173,2]
[365459440,1749682232668,-159.94368439,0.00019173,2]
[365459442,1749682232677,-190.5316047,0.00019173,2]
[365459443,1749682232687,-500.0,0.00019173,2]
[365459444,1749682232696,-500.0,0.00019173,2]
[365459445,1749682232705,-159.9447661,0.00019173,2]
[365459446,1749682232715,-159.94303668,0.00019173,2]
[365459447,1749682232724,-500.0,0.00019173,2]
[365459448,1749682232734,-500.0,0.00019173,2]
[365459449,1749682232744,-500.0,0.00019173,2]
[365459450,1749682232753,-496.98003825,0.00019173,2]
[365459451,1749682232762,-500.0,0.00019173,2]
[365459452,1749682232772,-505.77137382,0.00019173,2]
[365459453,1749682232782,-500.0,0.00019173,2]
[365459454,1749682232791,-500.0,0.00019173,2]
[365459455,1749682232802,-500.0,0.00019173,2]
[365459456,1749682232812,-500.0,0.00019173,2]
[365459457,1749682232822,-280.64495868,0.00019177,2]
[365459458,1749682232832,-620.01505316,0.00019177,2]
[365459459,1749682232843,-435.02125896,0.00019178,2]
[365459460,1749682232853,-490.0,0.00019178,2]
[365459461,1749682232863,-490.0,0.00019178,2]
[365459462,1749682232873,-490.0,0.00019178,2]
[365459463,1749682232885,-480.0,0.00019178,2]
[365459464,1749682232895,-490.0,0.00019178,2]
[365459465,1749682232904,-490.0,0.00019178,2]
[365459466,1749682232914,-480.0,0.00019178,2]
[365459467,1749682232924,-490.0,0.00019178,2]
[365459468,1749682232933,-416.51988831,0.00019178,2]
[365459469,1749682232943,-557.38147213,0.00019178,2]
[365459470,1749682232952,-163.73286546,0.00019178,2]
[365459471,1749682232961,-490.0,0.00019178,2]
[365459472,1749682232972,-490.0,0.00019178,2]
[365459473,1749682232981,-480.0,0.00019178,2]
[365459474,1749682232990,-490.0,0.00019178,2]
[365459475,1749682233000,-490.0,0.00019178,2]
[365459476,1749682233009,-490.0,0.00019178,2]
[365459477,1749682233019,-490.0,0.00019178,2]
[365459478,1749682233028,-490.0,0.00019178,2]
[365459479,1749682233037,-490.0,0.00019178,2]
[365459480,1749682233047,-490.0,0.00019178,2]
[365459481,1749682233056,-490.0,0.00019178,2]
[365459482,1749682233065,-490.0,0.00019178,2]
[365459483,1749682233074,-490.0,0.00019178,2]
[365459484,1749682233084,-196.2115057,0.00019178,2]
[365459485,1749682233093,-490.0,0.00019178,2]
[365459486,1749682233104,-490.0,0.00019178,2]
[365459487,1749682233113,-490.0,0.00019178,2]
[365459488,1749682233123,-490.0,0.00019178,2]
[365459489,1749682233133,-490.0,0.00019178,2]
[365459490,1749682233142,-490.0,0.00019178,2]
[365459491,1749682233151,-480.0,0.00019178,2]
[365459492,1749682233161,-490.0,0.00019178,2]
[365459493,1749682233170,-490.0,0.00019178,2]
[365459494,1749682233179,-490.0,0.00019178,2]
[365459495,1749682233188,-490.0,0.00019178,2]
[365459496,1749682233198,-500.0,0.00019178,2]
[365459497,1749682233208,-490.0,0.00019178,2]
[365459498,1749682233217,-480.0,0.00019178,2]
[365459499,1749682233226,-366.89206707,0.00019178,2]
[365459500,1749682233236,-490.0,0.00019178,2]
[365459501,1749682233245,-490.0,0.00019178,2]
[365459502,1749682233255,-490.0,0.00019178,2]
[365459503,1749682233265,-490.0,0.00019178,2]
[365459504,1749682233274,-490.0,0.00019178,2]
[365459505,1749682233284,-480.0,0.00019178,2]
[365459506,1749682233293,-490.0,0.00019178,2]
[365459507,1749682233303,-490.0,0.00019178,2]
[365459508,1749682233312,-490.0,0.00019178,2]
[365459509,1749682233322,-490.0,0.00019178,2]
[365459510,1749682233331,-490.0,0.00019178,2]
[365459511,1749682233340,-751.8,0.00019178,2]
[365459512,1749682233349,-490.0,0.00019178,2]
[365459513,1749682233360,-490.0,0.00019178,2]
[365459514,1749682233369,-490.0,0.00019178,2]
[365459515,1749682233380,-490.0,0.00019178,2]
[365459516,1749682233390,-460.0,0.00019178,2]
[365459517,1749682233399,-490.0,0.00019178,2]
[365459518,1749682233409,-490.0,0.00019178,2]
[365459519,1749682233418,-490.0,0.00019178,2]
[365459520,1749682233427,-500.0,0.00019178,2]
[365459521,1749682233437,-500.0,0.00019178,2]
[365459522,1749682233446,-500.0,0.00019178,2]
[365459523,1749682233456,-500.0,0.00019178,2]
[365459524,1749682233466,-490.0,0.00019178,2]
[365459525,1749682233476,-827.84,0.00019178,2]
[365459526,1749682233485,-490.0,0.00019178,2]
[365459527,1749682233495,-490.0,0.00019178,2]
[365459528,1749682233504,-490.0,0.00019178,2]
[365459529,1749682233513,-490.0,0.00019178,2]
[365459530,1749682233523,-490.0,0.00019178,2]
[365459531,1749682233533,-490.0,0.00019178,2]
[365459532,1749682233542,-504.27,0.00019178,2]
[365459533,1749682233552,-490.0,0.00019178,2]
[365459534,1749682233563,-490.0,0.00019178,2]
[365459535,1749682233572,-490.0,0.00019178,2]
[365459536,1749682233582,-490.0,0.00019178,2]
[365459537,1749682233592,-507.63,0.00019178,2]
[365459538,1749682233602,-609.30085438,0.00019178,2]
[365459539,1749682233611,-490.0,0.00019178,2]
[365459540,1749682233621,-490.0,0.00019178,2]
[365459541,1749682233631,-962.49,0.00019178,2]
[365459542,1749682233642,-490.0,0.00019178,2]
[365459543,1749682233652,-490.0,0.00019178,2]
[365459544,1749682233662,-490.0,0.00019178,2]
[365459545,1749682233671,-430.0,0.00019178,2]
[365459546,1749682233680,-490.0,0.00019178,2]
[365459547,1749682233689,-490.0,0.00019178,2]
[365459548,1749682233699,-490.0,0.00019178,2]
[365459549,1749682233708,-490.0,0.00019178,2]
[365459550,1749682233717,-549.18638581,0.00019178,2]
[365459551,1749682233727,-490.0,0.00019178,2]
[365459552,1749682233736,-480.0,0.00019178,2]
[365459553,1749682233746,-490.0,0.00019178,2]
[365459554,1749682233755,-490.0,0.00019178,2]
[365459555,1749682233765,-207.65008789,0.00019178,2]
[365459556,1749682233774,-490.0,0.00019178,2]
[365459557,1749682233784,-490.0,0.00019178,2]
[365459558,1749682233793,-490.0,0.00019178,2]
[365459559,1749682233805,-490.0,0.00019178,2]
[365459560,1749682233814,-490.0,0.00019178,2]
[365459561,1749682233824,-490.0,0.00019178,2]
[365459562,1749682233833,-596.08,0.00019178,2]
[365459563,1749682233843,-490.0,0.00019178,2]
[365459564,1749682233853,-480.0,0.00019178,2]
[365459565,1749682233863,-490.0,0.00019178,2]
[365459566,1749682233872,-490.0,0.00019178,2]
[365459567,1749682233883,-490.0,0.00019178,2]
[365459568,1749682233893,-490.0,0.00019178,2]
[365459569,1749682233902,-639.53,0.00019178,2]
[365459570,1749682233911,-490.0,0.00019178,2]
[365459571,1749682233921,-490.0,0.00019178,2]
[365459572,1749682233930,-490.0,0.00019178,2]
[365459573,1749682233939,-325.40679902,0.00019178,2]
[365459574,1749682233949,-739.95,0.00019178,2]
[365459575,1749682233958,-490.0,0.00019178,2]
[365459576,1749682233967,-490.0,0.00019178,2]
[365459577,1749682233977,-290.0,0.00019178,2]
[365459578,1749682233986,-673.4,0.00019178,2]
[365459579,1749682233995,-490.0,0.00019178,2]
[365459580,1749682234004,-684.3,0.00019178,2]
[365459581,1749682234014,-489.63464675,0.00019178,2]
[365459582,1749682234023,-490.0,0.00019178,2]
[365459583,1749682234032,-490.0,0.00019178,2]
[365459584,1749682234042,-490.0,0.00019178,2]
[365459585,1749682234051,-490.0,0.00019178,2]
[365459586,1749682234061,-707.38,0.00019178,2]
[365459587,1749682234071,-490.0,0.00019178,2]
[365459588,1749682234080,-490.0,0.00019178,2]
[365459589,1749682234090,-490.0,0.00019178,2]
[365459590,1749682234099,-530.03,0.00019178,2]
[365459591,1749682234110,-490.0,0.00019178,2]
[365459592,1749682234119,-490.0,0.00019178,2]
[365459593,1749682234128,-490.0,0.00019178,2]
[365459594,1749682234138,-490.0,0.00019178,2]
[365459595,1749682234147,-480.0,0.00019178,2]
[365459596,1749682234157,-480.0,0.00019178,2]
[365459597,1749682234167,-795.97,0.00019178,2]
[365459598,1749682234176,-490.0,0.00019178,2]
[365459599,1749682234186,-490.0,0.00019178,2]
[365459600,1749682234195,-490.0,0.00019178,2]
[365459601,1749682234205,-490.0,0.00019178,2]
[365459602,1749682234215,-490.0,0.00019178,2]
[365459603,1749682234224,-1264.11,0.00019178,2]
[365459604,1749682234234,-490.0,0.00019178,2]
[365459605,1749682234243,-480.0,0.00019178,2]
[365459606,1749682234253,-490.0,0.00019178,2]
[365459607,1749682234263,-490.0,0.00019178,2]
[365459608,1749682234272,-490.0,0.00019178,2]
[365459609,1749682234281,-490.0,0.00019178,2]
[365459610,1749682234291,-490.0,0.00019178,2]
[365459611,1749682234300,-490.0,0.00019178,2]
[365459612,1749682234310,-876.46,0.00019178,2]
[365459613,1749682234319,-490.0,0.00019178,2]
[365459614,1749682234328,-546.53,0.00019178,2]
[365459615,1749682234338,-490.0,0.00019178,2]
[365459616,1749682234347,-490.0,0.00019178,2]
[365459617,1749682234356,-490.0,0.00019178,2]
[365459618,1749682234366,-490.0,0.00019178,2]
[365459619,1749682234375,-490.0,0.00019178,2]
[365459620,1749682234385,-300.0,0.00019178,2]
[365459621,1749682234394,-131.59253014,0.00019178,2]
[365459622,1749682234416,-358.40746986,0.00019178,2]
[365459623,1749682234425,-490.0,0.00019178,2]
[365459624,1749682234435,-815.25,0.00019178,2]
[365459625,1749682234445,-490.0,0.00019178,2]
[365459626,1749682234454,-718.97,0.00019178,2]
[365459627,1749682234464,-487.0828801,0.00019178,2]
[365459628,1749682237500,-1500.0,0.00018045,2]
[365459629,1749682237510,-245.59237558,0.00018351,2]
[365459630,1749682237520,-950.8671199,0.00019178,2]
[365459631,1749682237530,-490.0,0.00019178,2]
[365459632,1749682237540,-470.0,0.00019178,2]
[365459633,1749682237550,-490.0,0.00019178,2]
[365459634,1749682237559,-254.69050452,0.00019178,2]
[365459635,1749682237571,-235.30949548,0.00019178,2]
[365459636,1749682237581,-490.0,0.00019178,2]
[365459637,1749682237591,-810.75,0.00019178,2]
[365459638,1749682237600,-490.0,0.00019178,2]
[365459639,1749682237614,-490.0,0.00019178,2]
[365459640,1749682237624,-480.0,0.00019178,2]
[365459641,1749682237633,-1004.11,0.00019178,2]
[365459642,1749682237643,-490.0,0.00019178,2]
[365459643,1749682237653,-490.0,0.00019178,2]
[365459644,1749682237663,-81.20146363,0.00019178,2]
[365459645,1749682237783,-397.78666546,0.00019178,2]
[365459646,1749682237830,-11.01187091,0.00019178,2]
[365459647,1749682237839,-490.0,0.00019178,2]
[365459648,1749682237849,-490.0,0.00019178,2]
[365459649,1749682237861,-387.21812902,0.00019178,2]
[365459650,1749682237874,-113.09354683,0.00019178,2]
[365459651,1749682237883,-798.92,0.00019178,2]
[365459652,1749682237893,-490.0,0.00019178,2]
[365459653,1749682237902,-480.0,0.00019178,2]
[365459654,1749682237911,-490.0,0.00019178,2]
[365459655,1749682237921,-490.0,0.00019178,2]
[365459656,1749682237930,-490.0,0.00019178,2]
[365459657,1749682237939,-490.0,0.00019178,2]
[365459658,1749682237948,-480.0,0.00019178,2]
[365459659,1749682237957,-480.0,0.00019178,2]
[365459660,1749682237967,-959.6,0.00019178,2]
[365459661,1749682237976,-490.0,0.00019178,2]
[365459662,1749682237986,-490.0,0.00019178,2]
[365459663,1749682237995,-739.11,0.00019178,2]
[365459664,1749682238004,-490.0,0.00019178,2]
[365459666,1749682238013,-480.0,0.00019178,2]
[365459667,1749682238023,-426.49835605,0.00019178,2]
[365459669,1749682238032,-644.83,0.00019178,2]
[365459671,1749682238042,-410.0,0.00019178,2]
[365459673,1749682238051,-486.31721398,0.00019178,2]
[365459675,1749682238059,-490.0,0.00019178,2]
[365459677,1749682238069,-422.38132047,0.00019178,2]
[365459679,1749682238077,-263.13213924,0.00019178,2]
[365459682,1749682238102,-216.86786076,0.00019178,2]
[365459683,1749682238113,-480.0,0.00019178,2]
[365459684,1749682238121,-490.0,0.00019178,2]
[365459685,1749682238130,-490.0,0.00019178,2]
[365459686,1749682238139,-480.0,0.00019178,2]
[365459687,1749682238148,-480.0,0.00019178,2]
[365459688,1749682238157,-490.0,0.00019178,2]
[365459689,1749682238166,-480.0,0.00019178,2]
[365459690,1749682238175,-490.0,0.00019178,2]
[365459691,1749682238185,-490.0,0.00019178,2]
[365459692,1749682238194,-490.0,0.00019178,2]
[365459694,1749682238203,-527.72962559,0.00019178,2]
[365459696,1749682238213,-490.0,0.00019178,2]
[365459698,1749682238223,-490.0,0.00019178,2]
[365459700,1749682238233,-490.0,0.00019178,2]
[365459702,1749682238243,-490.0,0.00019178,2]
[365459704,1749682238252,-483.21197246,0.00019178,2]
[365459706,1749682238261,-490.0,0.00019178,2]
[365459708,1749682238270,-490.0,0.00019178,2]
[365459710,1749682238279,-490.0,0.00019178,2]
[365459712,1749682238288,-490.0,0.00019178,2]
[365459714,1749682238298,-393.69748188,0.00019178,2]
[365459716,1749682238307,-500.0,0.00019178,2]
[365459718,1749682238317,-500.0,0.00019178,2]
[365459720,1749682238326,-500.0,0.00019178,2]
[365459722,1749682238335,-851.77,0.00019178,2]
[365459724,1749682238344,-490.0,0.00019178,2]
[365459726,1749682238354,-490.0,0.00019178,2]
[365459728,1749682238366,-480.0,0.00019178,2]
[365459730,1749682238376,-490.0,0.00019178,2]
[365459732,1749682238385,-490.0,0.00019178,2]
[365459734,1749682238394,-490.0,0.00019178,2]
[365459736,1749682238403,-482.18690529,0.00019178,2]
[365459738,1749682238412,-730.42038171,0.00019178,2]
[365459740,1749682238425,-490.02961829,0.00019178,2]
[365459742,1749682238435,-490.0,0.00019178,2]
[365459744,1749682238444,-490.0,0.00019178,2]
[365459746,1749682238453,-393.19213344,0.00019178,2]
[365459748,1749682238462,-490.0,0.00019178,2]
[365459750,1749682238472,-480.0,0.00019178,2]
[365459752,1749682238481,-480.0,0.00019178,2]
[365459754,1749682238490,-543.60151172,0.00019178,2]
[365459757,1749682238502,-773.00848828,0.00019178,2]
[365459759,1749682238511,-490.0,0.00019178,2]
[365459761,1749682238520,-490.0,0.00019178,2]
[365459763,1749682238529,-606.93062687,0.00019178,2]
[365459765,1749682238539,-490.0,0.00019178,2]
[365459767,1749682238548,-668.99,0.00019178,2]
[365459769,1749682238557,-490.0,0.00019178,2]
[365459771,1749682238566,-490.0,0.00019178,2]
[365459773,1749682238575,-490.0,0.00019178,2]
[365459775,1749682238585,-426.90771548,0.00019178,2]
[365459777,1749682238593,-490.0,0.00019178,2]
[365459779,1749682238603,-490.0,0.00019178,2]
[365459781,1749682238616,-480.0,0.00019178,2]
[365459782,1749682238626,-512.18,0.00019178,2]
[365459785,1749682238635,-162.91462987,0.00019178,2]
[365459787,1749682238647,-327.08537013,0.00019178,2]
[365459789,1749682238656,-480.0,0.00019178,2]
[365459791,1749682238666,-947.28,0.00019178,2]
[365459793,1749682238675,-490.0,0.00019178,2]
[365459795,1749682238685,-490.0,0.00019178,2]
[365459797,1749682238694,-490.0,0.00019178,2]
[365459799,1749682238703,-490.0,0.00019178,2]
[365459801,1749682238712,-635.45,0.00019178,2]
[365459803,1749682238722,-76.7631252,0.00019178,2]
[365459805,1749682238734,-403.2368748,0.00019178,2]
[365459807,1749682238743,-493.36302987,0.00019178,2]
[365459809,1749682238755,-29.93697013,0.00019178,2]
[365459811,1749682238764,-490.0,0.00019178,2]
[365459814,1749682238775,-490.0,0.00019178,2]
[365459816,1749682238784,-972.33,0.00019178,2]
[365459817,1749682238794,-490.0,0.00019178,2]
[365459819,1749682238804,-490.0,0.00019178,2]
[365459822,1749682238816,-490.0,0.00019178,2]
[365459824,1749682238825,-503.24,0.00019178,2]
[365459825,1749682238836,-490.0,0.00019178,2]
[365459828,1749682238846,-214.64302987,0.00019178,2]
[365459904,1749682239641,-275.35697013,0.00019178,2]
[365459905,1749682239650,-273.3036989,0.00019178,2]
[365459906,1749682239662,-206.6963011,0.00019178,2]
[365459907,1749682239671,-490.0,0.00019178,2]